bitfinex-derivatives/quotes_ETHF0:USTF0_20240818
["timestamp","ask_amount","ask_price","bid_price","bid_amount"]
[1723960318011,0.00490933,2603.4,2603.3,17.51294053]
[1723960318193,0.00490933,2603.4,2603.3,18.47994053]
[1723960318400,1.50488571,2603.8,2603.7,0.57602]
[1723960318595,2.47764309,2604.3,2604.2,0.57591]
[1723960318903,1.33955738,2604.3,2604.2,4.61165698]
[1723960319104,1.68485738,2604.3,2604.2,4.61165698]
[1723960319409,1.68909603,2604.3,2604.2,4.61165698]
[1723960319704,1.68909603,2604.3,2604.2,8.77798166]
[1723960320506,0.00999603,2604.3,2604.2,12.07479683]
[1723960320826,0.00999603,2604.3,2604.2,12.89182188]
[1723960321000,0.37799603,2604.3,2604.2,10.50199784]
[1723960321197,0.37799603,2604.3,2604.2,12.6155792]
[1723960322307,0.37799603,2604.3,2604.2,12.11248226]
[1723960322612,0.37799603,2604.3,2604.2,11.10768158]
[1723960322906,0.37799603,2604.3,2604.2,12.11246886]
[1723960323109,0.37799603,2604.3,2604.2,12.11246716]
[1723960323407,0.37799603,2604.3,2604.2,10.192704]
[1723960324109,1.34499603,2604.3,2604.2,5.34791842]
[1723960324415,1.34499603,2604.3,2604.2,4.16632468]
[1723960324598,1.34499603,2604.3,2604.2,4.7720492]
[1723960324797,1.34499603,2604.3,2604.2,0.60572452]
[1723960324992,1.34499603,2604.3,2604.2,4.91944948]
[1723960325398,1.34499603,2604.3,2604.2,5.49535948]
[1723960327109,0.37799603,2604.3,2604.2,5.49535948]
[1723960328215,0.37799603,2604.3,2604.2,4.88963496]
[1723960328717,0.37799603,2604.3,2604.2,0.57591]
[1723960328911,1.34499603,2604.3,2604.2,0.57591]
[1723960330313,5.18499603,2604.3,2604.1,0.60572425]
[1723960330605,0.967,2604.1,2604.0,3.2078]
[1723960331512,1.3184,2604.1,2604.0,3.2078]
[1723960332810,1.3184,2604.1,2603.9,5.95298]
[1723960333713,1.3184,2604.1,2603.9,0.57598]
[1723960334205,1.3184,2604.1,2603.8,3.5614]
[1723960334206,1.3184,2604.1,2603.8,3.2078]
[1723960334402,1.3184,2604.1,2603.8,3.78379]
[1723960334403,0.967,2603.9,2603.8,3.78379]
[1723960336113,0.967,2603.9,2603.8,0.57599]
[1723960339426,0.967,2603.9,2603.7,3.2078]
[1723960339725,0.7262,2603.8,2603.7,3.2078]
[1723960340113,0.7262,2603.8,2603.7,3.78382]
[1723960340316,0.7262,2603.8,2603.7,4.38961909]
[1723960340522,0.7262,2603.8,2603.7,3.2078]
[1723960340913,0.7262,2603.8,2603.7,3.78382]
[1723960341515,0.7262,2603.8,2603.7,4.38962078]
[1723960341834,0.7262,2603.8,2603.7,3.78382]
[1723960342220,0.7262,2603.8,2603.7,4.38961156]
[1723960345854,0.7262,2603.8,2603.7,4.3896069]
[1723960346718,1.6932,2603.8,2603.7,4.3896069]
[1723960349950,1.6932,2603.8,2603.7,3.78382]
[1723960350125,1.6932,2603.8,2603.7,4.38961323]
[1723960351732,0.3723,2603.8,2603.7,8.82642996]
[1723960351933,0.3723,2603.8,2603.7,9.18542996]
[1723960352821,0.3723,2603.8,2603.7,10.19021554]
[1723960353135,0.3723,2603.8,2603.7,12.11036884]
[1723960353331,1.3248,2604.0,2603.9,0.57598]
[1723960353635,1.3248,2604.0,2603.9,1.18177323]
[1723960354036,1.3248,2604.0,2603.9,1.18175059]
[1723960354537,1.3248,2604.0,2603.8,1.58073782]
[1723960354726,1.3248,2604.0,2603.9,0.60576922]
[1723960355529,0.57598,2603.9,2603.6,1.00475782]
[1723960355721,0.967,2603.7,2603.6,0.57603]
[1723960355925,0.967,2603.7,2603.6,1.18184113]
[1723960357334,0.967,2603.7,2603.6,2.18659895]
[1723960358431,0.967,2603.7,2603.6,1.58078782]
[1723960358729,0.967,2603.7,2603.6,2.1865922]
[1723960359238,0.967,2603.7,2603.6,3.10211031]
[1723960359539,0.967,2603.8,2603.7,0.57601]
[1723960359724,0.967,2603.8,2603.7,1.18181438]
[1723960360039,0.967,2603.8,2603.7,2.18709465]
[1723960360536,0.967,2603.8,2603.7,1.56584438]
[1723960360726,0.967,2603.8,2603.7,2.57112465]
[1723960360929,4.8078,2603.8,2603.7,1.56584438]
[1723960361233,0.967,2603.8,2603.7,2.57112465]
[1723960361437,4.8078,2603.8,2603.7,2.57112465]
[1723960362646,4.8078,2603.8,2603.7,1.96532027]
[1723960362831,4.8078,2603.8,2603.7,2.57111635]
[1723960363033,0.967,2603.8,2603.7,2.57111635]
[1723960363741,0.967,2603.8,2603.7,0.60579608]
[1723960363943,0.967,2603.8,2603.7,1.61107635]
[1723960364237,0.967,2603.8,2603.7,2.57111635]
[1723960364741,0.967,2603.8,2603.7,1.56583608]
[1723960365233,0.967,2603.8,2603.7,2.57111635]
[1723960365628,4.8078,2603.8,2603.7,2.57111635]
[1723960365833,0.967,2603.8,2603.7,2.57111635]
[1723960366339,4.8078,2603.8,2603.7,1.56583608]
[1723960366535,0.967,2603.8,2603.7,2.57111635]
[1723960367037,4.8078,2603.8,2603.7,2.57111684]
[1723960367241,0.967,2603.8,2603.7,2.57111684]
[1723960367453,0.967,2603.8,2603.7,1.96532027]
[1723960367642,0.967,2603.8,2603.7,2.57111687]
[1723960368834,0.967,2603.8,2603.7,2.33102027]
[1723960369034,0.967,2603.8,2603.7,2.93681813]
[1723960369336,0.967,2603.8,2603.7,4.85711615]
[1723960369542,0.967,2603.8,2603.7,3.89707615]
[1723960370039,0.967,2603.8,2603.7,2.93681813]
[1723960370234,0.967,2603.8,2603.7,4.85708723]
[1723960371137,0.967,2603.8,2603.7,3.85180696]
[1723960371362,0.967,2603.8,2603.7,3.2460091]
[1723960371539,0.967,2603.8,2603.7,4.85806582]
[1723960371943,0.967,2603.8,2603.7,3.85180144]
[1723960372138,0.967,2603.8,2603.7,5.35969906]
[1723960374331,0.967,2603.8,2603.7,3.85180144]
[1723960374537,0.967,2603.8,2603.7,5.36190292]
[1723960375141,0.967,2603.8,2603.7,3.85180144]
[1723960375345,0.967,2603.8,2603.7,5.36230626]
[1723960375569,0.967,2603.8,2603.7,7.26057437]
[1723960375739,0.967,2603.8,2603.7,7.86636499]
[1723960376141,0.967,2603.8,2603.7,9.87958903]
[1723960376740,0.967,2603.8,2603.7,7.86636499]
[1723960377151,1.50488571,2603.9,2603.8,0.96]
[1723960377335,2.47188571,2603.9,2603.8,4.99708639]
[1723960379443,2.47188571,2603.9,2603.8,4.99707434]
[1723960379751,2.47188571,2603.9,2603.8,4.99706949]
[1723960380050,2.47188571,2603.9,2603.8,4.39128372]
[1723960380440,2.47188571,2603.9,2603.8,4.99707247]
[1723960380943,2.47188571,2603.9,2603.8,4.9970703]
[1723960383043,2.47188571,2603.9,2603.8,4.99707716]
[1723960383452,2.47188571,2603.9,2603.8,3.48605049]
[1723960384153,2.47188571,2603.9,2603.8,4.99725484]
[1723960384535,2.47188571,2603.9,2603.8,3.48605049]
[1723960385543,2.47188571,2603.9,2603.8,4.99732107]
[1723960386048,0.967,2603.9,2603.8,4.03732107]
[1723960386354,2.47262795,2603.9,2603.8,4.99732107]
[1723960386550,2.47262456,2603.9,2603.8,4.99732107]
[1723960387441,2.47262456,2603.9,2603.8,4.99732033]
[1723960387641,2.47262456,2603.9,2603.8,4.9973203]
[1723960392167,2.47262456,2603.9,2603.8,4.997332]
[1723960392355,2.47262456,2603.9,2603.8,3.48606142]
[1723960392650,2.83042456,2604.0,2603.9,0.95996]
[1723960392853,2.83042456,2604.0,2603.9,4.9973026]
[1723960395658,1.86342456,2604.0,2603.9,4.9973026]
[1723960395956,1.86842456,2604.1,2604.0,0.95993]
[1723960396159,2.83542456,2604.1,2604.0,3.48599142]
[1723960396457,1.3298,2604.1,2604.0,3.48599142]
[1723960396697,1.3298,2604.1,2604.0,3.48573372]
[1723960396859,1.3298,2604.1,2604.0,3.48567665]
[1723960397455,1.3298,2604.1,2604.0,4.9963933]
[1723960397751,2.83542456,2604.1,2604.0,4.9963933]
[1723960398848,1.3298,2604.1,2604.0,4.9963933]
[1723960399658,2.83542456,2604.1,2604.0,4.9963933]
[1723960400458,1.3298,2604.1,2604.0,4.9963933]
[1723960401461,1.3298,2604.1,2604.0,4.39065882]
[1723960401659,2.83542456,2604.1,2604.0,4.99641827]
[1723960402453,1.3298,2604.1,2604.0,4.99641827]
[1723960403360,1.3298,2604.1,2604.0,4.03648827]
[1723960403564,2.83542456,2604.1,2604.0,3.53276964]
[1723960403763,2.83542456,2604.1,2604.0,1.61275747]
[1723960403764,6.67542456,2604.1,2604.0,1.61275747]
[1723960405270,5.1698,2604.1,2604.0,1.61275747]
[1723960405565,2.83487238,2604.1,2604.0,3.53289586]
[1723960405774,2.83487238,2604.1,2604.0,2.92713641]
[1723960405958,2.83487238,2604.1,2604.0,1.61276035]
[1723960406272,6.67487238,2604.1,2604.0,1.61277531]
[1723960406566,6.67487238,2604.1,2604.0,3.5329409]
[1723960407560,6.67487238,2604.1,2604.0,3.53293216]
[1723960407766,6.67487238,2604.1,2604.0,1.61276657]
[1723960408360,6.67487238,2604.1,2604.0,3.53294034]
[1723960409983,6.67487238,2604.1,2604.0,3.53293937]
[1723960410176,6.67487238,2604.1,2604.0,1.6127656]
[1723960410678,2.83487238,2604.1,2604.0,4.49289123]
[1723960411480,2.83487238,2604.1,2604.0,3.53296123]
[1723960413907,2.83487238,2604.1,2604.0,2.92719365]
[1723960414191,2.83487238,2604.1,2604.0,3.53296453]
[1723960414378,2.83487238,2604.1,2604.0,1.6127689]
[1723960414782,1.3298,2604.1,2604.0,1.6127689]
[1723960415671,2.83453102,2604.1,2604.0,3.53293909]
[1723960416976,2.83453102,2604.1,2604.0,4.49286909]
[1723960417286,2.83453102,2604.1,2604.0,4.99658772]
[1723960417481,2.83453102,2604.1,2604.0,4.49291562]
[1723960417687,2.83453102,2604.1,2604.0,3.48587107]
[1723960418097,2.83453102,2604.1,2604.0,1.92017019]
[1723960418274,2.83453102,2604.1,2604.0,3.53297769]
[1723960418681,2.83453102,2604.1,2604.0,2.92721492]
[1723960418984,2.83453102,2604.1,2604.0,3.53297947]
[1723960419383,1.3298,2604.1,2604.0,1.61280928]
[1723960420088,2.83441595,2604.1,2604.0,3.53298379]
[1723960420688,2.83441595,2604.1,2604.0,3.48586906]
[1723960421992,2.83441595,2604.1,2604.0,4.99658571]
[1723960422296,2.83441595,2604.1,2604.0,4.99657736]
[1723960422486,2.83441595,2604.1,2604.0,3.48586071]
[1723960422792,2.83441595,2604.1,2604.0,4.49297329]
[1723960423583,2.83441595,2604.1,2604.0,4.99657736]
[1723960424595,2.83441595,2604.1,2604.0,4.99650461]
[1723960426389,2.83441595,2604.1,2604.0,4.99650679]
[1723960426991,2.83441595,2604.1,2604.0,3.48579014]
[1723960427189,1.3298,2604.1,2604.0,4.49297343]
[1723960427816,1.3298,2604.1,2604.0,3.88721505]
[1723960428087,1.3298,2604.1,2604.0,4.49298643]
[1723960428490,1.3298,2604.1,2604.0,3.48580314]
[1723960428884,2.83555152,2604.1,2604.0,4.99651979]
[1723960429083,2.83555152,2604.1,2604.0,4.03658979]
[1723960429279,1.3298,2604.1,2604.0,3.53311093]
[1723960430923,1.3298,2604.1,2604.0,2.92733955]
[1723960431090,1.3298,2604.1,2604.0,2.52587374]
[1723960432092,1.3298,2604.1,2604.0,3.53317427]
[1723960432486,3.33631429,2604.1,2604.0,3.53317427]
[1723960433295,1.3298,2604.1,2604.0,3.53317427]
[1723960433595,3.33631429,2604.1,2604.0,3.53317427]
[1723960433991,3.33631429,2604.1,2604.0,3.53331531]
[1723960434294,3.33631429,2604.1,2604.0,3.53341457]
[1723960435092,1.3298,2604.1,2604.0,4.03673528]
[1723960435390,3.33631429,2604.1,2604.0,2.52601863]
[1723960435585,3.33631429,2604.1,2604.0,3.53349779]
[1723960436191,3.33631429,2604.1,2604.0,3.53349583]
[1723960436498,3.33631429,2604.1,2604.0,2.52601863]
[1723960437589,3.33631429,2604.1,2604.0,4.03673528]
[1723960438507,1.3298,2604.1,2604.0,4.03673528]
[1723960438793,1.3298,2604.1,2604.0,4.0366188]
[1723960441398,3.33631429,2604.1,2604.0,4.0366188]
[1723960441700,3.33631429,2604.1,2604.0,4.03660921]
[1723960441895,3.33631429,2604.1,2604.0,4.03663778]
[1723960442101,3.33631429,2604.1,2604.0,4.0366379]
[1723960442495,1.3298,2604.1,2604.0,4.0366379]
[1723960443100,3.33631429,2604.1,2604.0,4.0366379]
[1723960443695,4.29620429,2604.1,2604.0,4.0366379]
[1723960443892,13.6407403,2604.1,2604.0,0.60576636]
[1723960444104,11.12969,2604.1,2604.0,0.60576636]
[1723960445821,0.95996,2603.9,2603.8,1.00768936]
[1723960446005,3.93639923,2603.9,2603.8,1.61351034]
[1723960446194,7.77719923,2603.9,2603.8,1.61351034]
[1723960447505,7.77719923,2603.9,2603.8,0.60582098]
[1723960448006,7.77719923,2603.9,2603.8,0.60582071]
[1723960450695,13.27955904,2603.9,2603.6,1.00768936]
[1723960450895,13.27955904,2603.9,2603.4,1.86301665]
[1723960450896,0.96007,2603.6,2603.5,1.00768936]
[1723960451106,1.92707,2603.6,2603.5,0.60586441]
[1723960451295,6.84377,2603.6,2603.5,0.60586441]
[1723960451696,8.34956964,2603.6,2603.5,0.60586441]
[1723960452304,6.84377,2603.6,2603.5,0.60586441]
[1723960452504,8.34955524,2603.6,2603.5,0.60586441]
[1723960453615,8.34955524,2603.6,2603.4,1.00768936]
[1723960453795,4.50875524,2603.6,2603.5,0.60571698]
[1723960454299,8.34955524,2603.6,2603.5,0.60571698]
[1723960456304,8.34955524,2603.6,2603.3,1.00768936]
[1723960456504,8.34955524,2603.6,2603.3,1.96786936]
[1723960456505,0.967,2603.4,2603.3,1.96786936]
[1723960456702,0.967,2603.4,2603.3,2.57360032]
[1723960456909,0.967,2603.4,2603.3,1.61342032]
[1723960457209,0.967,2603.4,2603.3,0.60573096]
[1723960457404,0.967,2603.4,2603.3,1.61342032]
[1723960457799,0.967,2603.4,2603.3,0.60573096]
[1723960461797,0.967,2603.4,2603.3,0.96643096]
[1723960462206,0.967,2603.5,2603.3,1.92661096]
[1723960462404,0.967,2603.5,2603.4,0.60573096]
[1723960462709,0.967,2603.5,2603.4,0.95133096]
[1723960466438,0.967,2603.5,2603.3,0.96018]
[1723960466605,0.967,2603.5,2603.4,0.6057268]
[1723960469811,0.967,2603.5,2603.4,0.60571724]
[1723960470309,0.967,2603.5,2603.4,0.60572404]
[1723960471503,0.967,2603.5,2603.3,0.96018]
[1723960471707,0.967,2603.4,2603.3,0.96018]
[1723960471906,0.967,2603.4,2603.3,1.56590689]
[1723960474716,0.967,2603.4,2603.3,0.60572689]
[1723960476204,0.967,2603.4,2603.3,1.56590689]
[1723960476709,0.967,2603.4,2603.3,0.60572689]
[1723960477305,0.967,2603.4,2603.3,1.56590689]
[1723960479218,0.967,2603.4,2603.3,1.5659001]
[1723960481406,0.967,2603.4,2603.3,2.57358946]
[1723960482859,0.967,2603.4,2603.3,1.96786936]
[1723960483116,0.967,2603.4,2603.3,2.57358639]
[1723960484417,0.967,2603.4,2603.3,4.49416577]
[1723960485416,0.967,2603.4,2603.3,3.48647641]
[1723960485616,0.967,2603.4,2603.3,4.99719306]
[1723960486826,0.967,2603.4,2603.3,3.5326407]
[1723960487124,0.967,2603.4,2603.3,4.4928207]
[1723960487331,0.967,2603.4,2603.3,2.88075938]
[1723960487520,0.967,2603.4,2603.3,4.99719433]
[1723960488326,0.967,2603.5,2603.4,0.96012]
[1723960488517,0.967,2603.5,2603.4,2.57238411]
[1723960488721,0.967,2603.5,2603.4,8.83784496]
[1723960489516,0.967,2603.5,2603.4,7.32712831]
[1723960489826,0.967,2603.5,2603.4,8.83785764]
[1723960490621,0.967,2603.5,2603.4,7.32712831]
[1723960491425,0.967,2603.5,2603.4,3.48632831]
[1723960491613,0.967,2603.5,2603.4,5.49951352]
[1723960492030,0.967,2603.5,2603.4,4.89383405]
[1723960492215,0.967,2603.5,2603.4,5.49951348]
[1723960495518,0.967,2603.5,2603.4,9.34035811]
[1723960495718,0.967,2603.5,2603.4,9.34034976]
[1723960496523,0.967,2603.5,2603.4,5.49950513]
[1723960496729,0.967,2603.5,2603.4,9.34031499]
[1723960498025,0.967,2603.5,2603.4,9.34019214]
[1723960500426,0.967,2603.5,2603.4,5.49940746]
[1723960500630,0.967,2603.5,2603.4,9.34021115]
[1723960501026,0.967,2603.5,2603.4,9.34019722]
[1723960501226,0.967,2603.5,2603.4,9.34015444]
[1723960501429,0.967,2603.5,2603.4,5.49939489]
[1723960502423,0.967,2603.5,2603.4,3.48617085]
[1723960502826,2.21808524,2603.6,2603.5,0.96011]
[1723960503022,1.6793,2603.6,2603.5,4.39138191]
[1723960503230,1.6793,2603.6,2603.5,4.99705479]
[1723960504132,1.6793,2603.6,2603.5,3.48616265]
[1723960504743,1.6793,2603.6,2603.5,2.88048977]
[1723960505028,2.47278524,2603.7,2603.6,0.96007]
[1723960505227,2.47278524,2603.7,2603.6,4.99689065]
[1723960505438,2.47278524,2603.7,2603.6,3.48611952]
[1723960505736,2.47278524,2603.7,2603.6,4.4933078]
[1723960505937,2.47278524,2603.7,2603.6,4.49337764]
[1723960506229,2.47278524,2603.7,2603.6,2.5729343]
[1723960506438,2.82738524,2603.7,2603.6,2.5729343]
[1723960506838,1.3216,2603.7,2603.6,2.5729343]
[1723960507227,2.82674244,2603.7,2603.6,4.49335043]
[1723960507735,2.82674244,2603.7,2603.6,4.49335726]
[1723960510531,2.82674244,2603.7,2603.6,4.4933564]
[1723960511325,2.82674244,2603.7,2603.6,3.48616185]
[1723960512039,2.82674244,2603.7,2603.6,3.48614992]
[1723960514138,2.82674244,2603.7,2603.6,4.99692105]
[1723960514536,2.82674244,2603.7,2603.6,8.20472105]
[1723960514726,2.82674244,2603.7,2603.6,3.48614992]
[1723960514930,2.82674244,2603.7,2603.6,4.99692105]
[1723960515828,2.82674244,2603.7,2603.6,4.49326791]
[1723960516235,2.82674244,2603.7,2603.6,3.48614992]
[1723960516456,2.82674244,2603.7,2603.6,4.3912564]
[1723960516637,2.82674244,2603.7,2603.6,4.99692132]
[1723960517037,2.82674244,2603.7,2603.6,4.99692134]
[1723960518550,1.85974244,2603.7,2603.6,16.34362486]
[1723960518741,1.85974244,2603.7,2603.6,16.34361499]
[1723960520041,1.85974244,2603.7,2603.6,12.50281499]
[1723960520436,1.85974244,2603.7,2603.6,7.78424386]
[1723960520658,1.85974244,2603.7,2603.6,9.29501499]
[1723960520834,1.85974244,2603.7,2603.6,9.29502284]
[1723960521945,2.21734244,2603.7,2603.6,9.29497408]
[1723960522937,1.50514244,2603.8,2603.7,0.96004]
[1723960523145,3.80230244,2603.9,2603.7,4.99667019]
[1723960523352,3.80230244,2603.9,2603.8,4.03663019]
[1723960524150,3.80230244,2603.9,2603.8,2.52602943]
[1723960524536,3.80230244,2603.9,2603.8,4.03663019]
[1723960525039,3.80230244,2603.9,2603.8,4.03660448]
[1723960525238,3.80230244,2603.9,2603.8,2.52600372]
[1723960525940,3.80230244,2603.9,2603.8,1.61263327]
[1723960526343,2.29716,2603.9,2603.8,1.61263327]
[1723960526736,4.30556904,2603.9,2603.8,0.60563721]
[1723960527641,4.30556904,2603.9,2603.8,1.61263327]
[1723960528043,2.29716,2603.9,2603.8,1.61263327]
[1723960529247,4.30556904,2603.9,2603.8,1.61263327]
[1723960529564,2.29716,2603.9,2603.8,1.00699606]
[1723960529755,2.29716,2603.9,2603.8,1.61265049]
[1723960533553,2.29716,2603.9,2603.8,1.61264895]
[1723960534051,2.29716,2603.9,2603.8,3.53297891]
[1723960535045,2.29716,2603.9,2603.8,1.61264895]
[1723960535852,4.30556904,2603.9,2603.8,1.61264895]
[1723960537148,8.14636904,2603.9,2603.8,1.61264895]
[1723960537348,8.14636904,2603.9,2603.8,0.60565289]
[1723960537849,11.13796,2603.9,2603.5,4.21479606]
[1723960538039,2.96850691,2603.7,2603.6,0.60572276]
[1723960538243,6.80930691,2603.7,2603.6,0.60572276]
[1723960540455,4.80084,2603.7,2603.6,0.60572276]
[1723960541550,6.80816511,2603.7,2603.6,0.60572276]
[1723960542056,0.96007,2603.6,2603.5,1.00699606]
[1723960542284,0.96011,2603.5,2603.4,1.00699606]
[1723960542464,0.96015,2603.4,2603.3,1.51060076]
[1723960542651,2.81951043,2603.4,2603.3,4.03704081]
[1723960542948,2.81951043,2603.4,2603.3,3.53366213]
[1723960543149,2.81951043,2603.4,2603.3,1.61295442]
[1723960543540,2.81951043,2603.4,2603.3,3.53366959]
[1723960543740,2.81951043,2603.4,2603.3,3.53367189]
[1723960544153,2.81951043,2603.4,2603.3,1.61295672]
[1723960544656,1.31415,2603.4,2603.3,1.61295672]
[1723960544853,1.31415,2603.4,2603.3,3.53366109]
[1723960545260,6.66111043,2603.4,2603.3,1.61295672]
[1723960545454,0.96018,2603.3,2603.2,0.00368729]
[1723960545652,8.14311275,2603.3,2603.2,0.60945998]
[1723960546357,6.13678,2603.3,2603.2,0.60945998]
[1723960547057,6.13678,2603.3,2603.2,0.00368729]
[1723960548244,7.64021253,2603.3,2603.2,0.00368729]
[1723960548549,6.13678,2603.3,2603.2,0.00368729]
[1723960549245,7.6399222,2603.3,2603.2,0.00368729]
[1723960550553,8.6001022,2603.3,2603.2,0.00368729]
[1723960550762,8.6001022,2603.3,2602.6,1.00722208]
[1723960550763,0.96041,2602.7,2602.6,1.00722208]
[1723960550953,1.92741,2602.7,2602.6,0.60583247]
[1723960551160,1.92741,2602.7,2602.5,0.96048]
[1723960551364,0.7104,2602.6,2602.5,0.96048]
[1723960551662,0.7104,2602.6,2602.5,1.56905996]
[1723960552165,0.7104,2602.6,2602.5,0.96320608]
[1723960553263,0.967,2602.7,2602.6,0.96044]
[1723960553664,0.967,2602.7,2602.6,1.32514]
[1723960554063,0.967,2602.7,2602.6,0.3647]
[1723960554428,0.97275738,2602.8,2602.6,1.32513]
[1723960555058,1.93312738,2602.8,2602.6,0.3647]
[1723960555760,1.93312738,2602.8,2602.7,6.17216217]
[1723960555761,0.00575738,2602.8,2602.7,6.17216217]
[1723960555959,0.00575738,2602.8,2602.7,10.62035026]
[1723960558855,0.00575738,2602.8,2602.7,10.62034144]
[1723960560658,0.00575738,2602.8,2602.7,10.6203415]
[1723960562161,0.00030188,2602.8,2602.7,10.6203415]
[1723960562356,0.00030188,2602.8,2602.7,11.62756358]
[1723960566462,0.00030188,2602.8,2602.7,10.6203415]
[1723960566870,0.00030188,2602.8,2602.7,10.62033207]
[1723960567059,0.00030188,2602.8,2602.7,16.62755415]
[1723960567264,0.00030188,2602.8,2602.7,19.05169356]
[1723960568865,0.00030188,2602.8,2602.7,27.06783189]
[1723960569262,0.3562,2603.4,2603.3,0.96018]
[1723960571873,0.3517,2603.5,2603.4,0.96015]
[1723960573771,0.97275738,2603.6,2603.4,0.96015]
[1723960573772,0.00575738,2603.6,2603.5,0.96011]
[1723960574776,0.97275738,2603.6,2603.5,0.96011]
[1723960577779,0.00575738,2603.6,2603.5,0.96011]
[1723960577972,0.00575738,2603.6,2603.5,5.05941683]
[1723960579373,0.00575738,2603.6,2603.5,8.90021683]
[1723960579681,0.36,2603.8,2603.7,0.96004]
[1723960579874,0.36,2603.8,2603.7,5.13484]
[1723960580081,0.36,2603.8,2603.7,13.15401796]
[1723960580283,0.36,2603.8,2603.7,13.75965217]
[1723960580487,0.3511,2604.0,2603.9,0.95996]
[1723960580780,0.729,2604.0,2603.9,0.95996]
[1723960582377,0.729,2604.0,2603.9,5.21632339]
[1723960585979,0.729,2604.0,2603.9,9.05632339]
[1723960588678,0.729,2604.0,2603.9,10.02332339]
[1723960590286,0.00575738,2604.2,2604.1,0.95989]
[1723960590783,0.00575738,2604.2,2604.1,8.91522142]
[1723960594776,0.00575738,2604.2,2604.1,9.25982142]
[1723960597281,0.00575738,2604.2,2604.1,10.22682142]
[1723960597482,0.00423865,2604.3,2604.2,0.95985]
[1723960597779,0.00423865,2604.3,2604.2,17.13526244]
[1723960603787,0.00423865,2604.3,2604.2,22.13526244]
[1723960606895,0.00423865,2604.3,2604.2,23.09511244]
[1723960607086,0.00575738,2604.5,2604.4,1.92678]
[1723960607290,0.00575738,2604.5,2604.4,5.13458]
[1723960607596,0.00575738,2604.5,2604.4,17.91041569]
[1723960607894,0.00575738,2604.5,2604.4,18.64091569]
[1723960608097,0.00913105,2604.5,2604.4,18.64387167]
[1723960610198,0.00913105,2604.5,2604.4,12.31597167]
[1723960610592,0.00913105,2604.5,2604.4,13.28297167]
[1723960612501,0.00913105,2604.5,2604.4,9.07417167]
[1723960612697,0.00913105,2604.5,2604.4,8.10717167]
[1723960612892,0.35803105,2604.5,2604.4,8.10717167]
[1723960613199,0.72953105,2604.5,2604.4,8.10717167]
[1723960615595,5.53573105,2604.5,2604.4,7.14739167]
[1723960615797,5.53573105,2604.5,2604.4,0.00295598]
[1723960615798,11.49547105,2604.5,2604.4,0.00295598]
[1723960618692,0.95985,2604.2,2604.1,3.2078]
[1723960618893,1.92685,2604.2,2604.1,3.2078]
[1723960619104,5.76685,2604.2,2604.1,3.2078]
[1723960619696,5.76685,2604.2,2604.1,3.21186616]
[1723960620397,5.76685,2604.2,2604.1,0.00406616]
[1723960631405,5.76685,2604.2,2603.7,0.00575738]
[1723960631406,0.95999,2603.9,2603.7,0.00575738]
[1723960631607,1.3151,2603.8,2603.7,0.00575738]
[1723960631807,1.6628,2603.8,2603.7,0.00575738]
[1723960632007,5.5036,2603.8,2603.7,0.00575738]
[1723960632308,5.5036,2603.8,2603.7,0.00985931]
[1723960632911,12.00664682,2603.8,2603.7,1e-08]
[1723960633614,10.5036,2603.8,2603.7,1e-08]
[1723960634215,12.00664682,2603.8,2603.7,1e-08]
[1723960634413,10.5036,2603.8,2603.7,1e-08]
[1723960635297,11.4636,2603.8,2603.7,1e-08]
[1723960635501,12.96504146,2603.8,2603.7,1e-08]
[1723960635712,11.4636,2603.8,2603.7,1e-08]
[1723960636406,12.96446748,2603.8,2603.7,1e-08]
[1723960639310,11.4636,2603.8,2603.7,1e-08]
[1723960644938,6.4636,2603.8,2603.7,1e-08]
[1723960645509,11.4636,2603.8,2603.7,1e-08]
[1723960645905,6.4636,2603.8,2603.7,1e-08]
[1723960646317,11.4636,2603.8,2603.7,1e-08]
[1723960648017,6.4636,2603.8,2603.7,1e-08]
[1723960648412,11.4636,2603.8,2603.7,1e-08]
[1723960648617,6.4636,2603.8,2603.7,1e-08]
[1723960650515,5.5036,2603.8,2603.7,1e-08]
[1723960650717,10.5036,2603.8,2603.7,1e-08]
[1723960651019,5.5036,2603.8,2603.7,1e-08]
[1723960651220,10.5036,2603.8,2603.7,1e-08]
[1723960657309,5.5036,2603.8,2603.7,1e-08]
[1723960657721,10.5036,2603.8,2603.7,1e-08]
[1723960657912,5.5036,2603.8,2603.7,1e-08]
[1723960658319,10.5036,2603.8,2603.7,1e-08]
[1723960658938,12.00446748,2603.8,2603.7,1e-08]
[1723960659113,10.5036,2603.8,2603.7,1e-08]
[1723960659321,12.00446748,2603.8,2603.7,1e-08]
[1723960660426,7.00446748,2603.8,2603.7,1e-08]
[1723960660625,12.00446748,2603.8,2603.7,1e-08]
[1723960660922,7.00446748,2603.8,2603.7,1e-08]
[1723960661227,12.00446748,2603.8,2603.7,1e-08]
[1723960661430,5.5036,2603.8,2603.7,1e-08]
[1723960662722,12.5071884,2603.8,2603.7,1e-08]
[1723960662929,7.5071884,2603.8,2603.7,1e-08]
[1723960666123,5.5036,2603.8,2603.7,1e-08]
[1723960666719,7.5071884,2603.8,2603.7,1e-08]
[1723960667630,0.96,2603.8,2603.7,1e-08]
[1723960667826,2.45931757,2603.8,2603.7,1e-08]
[1723960668333,4.8008,2603.8,2603.7,1e-08]
[1723960669534,2.9635884,2603.8,2603.7,1e-08]
[1723960673427,0.96,2603.8,2603.7,1e-08]
[1723960674538,3.47058364,2603.8,2603.7,1e-08]
[1723960675533,0.96,2603.8,2603.7,1e-08]
[1723960687950,0.96,2603.8,2603.7,0.6057164]
[1723960688850,0.96,2603.8,2603.7,0.60572083]
[1723960691641,0.96,2603.8,2603.7,1e-08]
[1723960696251,0.96,2603.8,2603.7,0.60573654]
[1723960696551,0.96,2603.8,2603.7,0.60572935]
[1723960697053,0.96,2603.8,2603.7,1e-08]
[1723960697355,0.96,2603.8,2603.7,0.60573567]
[1723960697841,0.96,2603.8,2603.7,0.60573562]
[1723960698239,0.96,2603.8,2603.7,0.60571696]
[1723960700754,0.96,2603.8,2603.7,0.60571857]
[1723960705061,0.96,2603.8,2603.7,0.60570253]
[1723960707760,3.46849513,2603.8,2603.7,0.60570253]
[1723960708066,0.96,2603.8,2603.7,0.60570253]
[1723960709787,0.96,2603.8,2603.7,1e-08]
[1723960709959,0.96,2603.8,2603.7,0.60571276]